Cogmind - Beta 14 @@@ ROGUE MODE // 2025.04.27 @ 21:33:47 Player: DuckBoy Result: Destroyed by 8F-HII(R) with Subdweller Machine Gun Performance ------------- Evolutions (0) 0 Regions Visited (2) 400 Robots Destroyed (31) 155 Value Destroyed (670) 670 Prototype IDs (11) 220 Alien Tech Used (0) 0 Bonus (-32) -32 TOTAL SCORE: 1413 Bonus ------- Friendly Fire -32 Cogmind --------- Core Integrity 0/250 Matter 5/300 Energy 100/100 System Corruption 17% Temperature Cool (0) Movement Core (3400) Ox67 Location -10/Subcaves Parts ------- > --- POWER (1) -------- (None) > --- PROPULSION (2) --- (None) > --- UTILITY (2) ------ Humpback > --- WEAPON (2) ------- Subdweller Laser > --- INVENTORY (35) --- Ion Engine Subdweller Power Source Subdweller Power Source Subdweller Power Source Subdweller Monowheel High-capacity Storage Unit Sensor Array Targeting Computer Hardened Light Armor Plating Hardened Light Armor Plating Hardened Light Armor Plating Makeshift Light Armor Plating Hacking Suite Hacking Suite Power Bank EM Pulse Gun EM Pulse Gun EM Pulse Gun EM Pulse Gun Subdweller Beam Cannon Subdweller Beam Cannon Autogun Subdweller Machine Gun Mini Grenade Launcher Subdweller Shrapnel Launcher Peak State ------------ > --- POWER ------------ Ion Engine > --- PROPULSION ------- Subdweller Monowheel Subdweller Monowheel > --- UTILITY ---------- Humpback > --- WEAPON ----------- Subdweller Laser Autogun > --- INVENTORY -------- Ion Engine Subdweller Power Source Subdweller Power Source Subdweller Power Source High-capacity Storage Unit Targeting Computer Hardened Light Armor Plating Hardened Light Armor Plating Hardened Light Armor Plating Makeshift Light Armor Plating Hacking Suite Hacking Suite Power Bank EM Pulse Gun EM Pulse Gun EM Pulse Gun EM Pulse Gun Subdweller Beam Cannon Subdweller Beam Cannon Autogun Subdweller Machine Gun Mini Grenade Launcher Subdweller Shrapnel Launcher [Rating: 16] Favorites ----------- Power Ion Engine Engine Ion Engine Propulsion Light Treads Treads Light Treads Wheel Subdweller Monowheel Utility Humpback Storage Humpback Protection Hardened Light Armor Plating Weapon Autogun Energy Gun Subdweller Laser Ballistic Gun Autogun Launcher Mini Grenade Launcher Build | -11 -10 -10 ------- Run | Yrd Mat Sub Slots Evolved . | . . . Power . | . . . Propulsion . | . . . Utility . | . . . Weapon . | . . . Parts Attached 33 | 6 9 18 Power 3 | 1 . 2 Engine 3 | 1 . 2 Core . | . . . Reactor . | . . . Propulsion 8 | 2 . 6 Treads 4 | 2 . 2 Leg . | . . . Wheel 4 | . . 4 Hover . | . . . Flight . | . . . Utility 7 | 1 5 1 Device . | . . . Storage 5 | 1 3 1 Processor . | . . . Hackware . | . . . Protection 2 | . 2 . Artifact . | . . . Weapon 15 | 2 4 9 Energy Gun 6 | 2 2 2 Energy Cannon . | . . . Ballistic Gun 7 | . 2 5 Ballistic Cannon . | . . . Launcher 2 | . . 2 Special Weapon . | . . . Impact Weapon . | . . . Slashing Weapon . | . . . Piercing Weapon . | . . . Special Melee Weapon . | . . . Unidentified Prototypes . | . . . Corrupted Parts 2 | . . 2 System Corruption 12 | . . 12 Parts Lost 13 | . 2 11 Power 2 | . . 2 Propulsion 5 | . . 5 Utility 1 | . . 1 Weapon 5 | . 2 3 Highest Loss Streak 3 | . 1 3 To Critical Strikes 1 | . . 1 Average Slot Usage (%) 78 | . 99 72 Engine 13 | . 14 13 Treads 13 | . 28 8 Wheel 2 | . . 2 Storage 13 | . 14 13 Protection 6 | . 13 3 Energy Gun 10 | . 13 9 Ballistic Gun 17 | . 14 17 Peak Build Rating 16 | 6 12 16 Average Rating 11 | 3 10 12 On Entrance 6 | . 6 12 Naked Turns . | . . . Heaviest Build 212 | 14 56 212 Greatest Support 40 | 40 40 40 Greatest Overweight (x) 70 | . 1 70 Average Overweight (x) 5 | . . 9 Largest Inventory Capacity 35 | 8 20 35 Average Capacity 26 | 7 15 30 Most Carried 25 | 8 17 25 Average Carried 19 | 4 11 22 Final Capacity 35 | 8 20 35 Final Carried 25 | 4 17 25 Class Distribution -------------------- 53% | Hauler-Mutant 46% | Mutant Dominant Class ---------------- Mutant | -10/Materials Hauler-Mutant | -10/Subcaves Resources | -11 -10 -10 ----------- Run | Yrd Mat Sub Matter Collected 783 | 160 282 341 Remotely . | . . . Salvage Created 1028 | . 671 357 Parts 90 | . 65 25 Haulers Intercepted 2 | . 2 . Recyclers Shooed 1 | . 1 . Parts Field Recycled . | . . . Retrieved Matter . | . . . Parts Self-Destructed 7 | . . 7 Prevented . | . . . Kills | -11 -10 -10 ------- Run | Yrd Mat Sub Combat Hostiles Destroyed 18 | . 10 8 Guns 17 | . 9 8 AOE 1 | . 1 . Classes Destroyed 10 | . 8 2 Worker 3 | . 3 . Builder 1 | . 1 . Tunneler 2 | . 2 . Hauler 2 | . 2 . Operator 2 | . 2 . Watcher 3 | . 3 . Swarmer 5 | . 3 2 Grunt 7 | . 7 . Artisan 2 | . . 2 Subdweller 6 | . . 6 Best Kill Streak 7 | . 7 2 Combat Bots Only 2 | . 2 2 Max Kills in Single Turn 2 | . 2 1 Gunslinging . | . . . Exploded 1 | . 1 . Melee . | . . . Uniques/NPCs Destroyed . | . . . Combat | -11 -10 -10 -------- Run | Yrd Mat Sub Hostile Shots Fired 156 | . 56 100 Missed 39 | . 16 23 Damage Taken 2031 | . 606 1425 Core 251 | . 46 205 Absorbed by Shields . | . . . Core Remaining (%) 100 | 100 . . Volleys Fired 103 | . 47 56 Largest 2 | . 2 2 Hottest 80 | . 80 60 Shots Fired 186 | . 92 94 Gun 178 | . 92 86 Cannon . | . . . Launcher 8 | . . 8 Special . | . . . Kinetic 76 | . 10 66 Thermal 17 | . . 17 Explosive 8 | . . 8 Electromagnetic 85 | . 82 3 Robot Hit Streak 13 | . 8 13 Robot Miss Streak 4 | . 4 2 Penetration Max . | . . . Secondary Targets 2 | . 1 1 Max Gunslinging Chain 1 | . 1 1 Shots Hit Robots 109 | . 52 57 Core Hits 50 | . 32 18 Critical Kills 1 | . . 1 Critical Parts Destroyed 1 | . . 1 Critical Strikes 4 | . 1 3 Destroy 3 | . . 3 Corrupt 1 | . 1 . Melee Attacks . | . . . Impact . | . . . Slashing . | . . . Piercing . | . . . Sneak Attacks . | . . . Combat Hostiles . | . . . Follow-up Attacks . | . . . Damage Inflicted 1978 | . 1136 842 Guns 1625 | . 783 842 Cannons . | . . . Explosions 353 | . 353 . Melee . | . . . Ramming . | . . . Kinetic 860 | . 95 765 Thermal 392 | . 315 77 Explosive . | . . . Electromagnetic 726 | . 726 . Impact . | . . . Slashing . | . . . Piercing . | . . . Highest Corruption 17 | . 5 17 Average Corruption 12 | . 4 14 Corruption Purged . | . . . Corruption Blocked . | . . . Effects 206 | . 29 177 Message Errors 49 | . 6 43 Matter Fused 31 | . 8 23 Heat Flow Errors 23 | . 4 19 Energy Discharges 35 | . 4 31 Parts Rejected 1 | . . 1 Parts Fused 1 | . . 1 Data Loss (minor) 32 | . 4 28 Data Loss (major) 12 | . 2 10 Misfires 9 | . . 9 Alerts 10 | . . 10 Weapon Failures 3 | . 1 2 Overload Shots . | . . . Overflow Damage 14 | . 14 . Projectiles . | . . . Explosions 14 | . 14 . Melee . | . . . Knockbacks . | . . . Impact . | . . . Kinetic . | . . . Secondary . | . . . Self-Inflicted Damage 144 | . 121 23 Shots 4 | . 3 1 Rammed 2 | . 2 . Targets Rammed 2 | . 2 . Kicked . | . . . Crushed . | . . . Highest Temperature 281 | . 281 244 Average Temperature 97 | . 95 102 Received Heat Transfer 703 | . 237 466 Effects 2 | . . 2 Interference 2 | . . 2 Siege Activations . | . . . Robots Corrupted . | . . . Combat Hostiles . | . . . Parts Fried 3 | . 3 . Impact Corruptions . | . . . Robots Melted . | . . . Combat Hostiles . | . . . Parts Melted 1 | . . 1 Heat Transferred 500 | . 400 100 Parts Sabotaged . | . . . Parts Stolen . | . . . Parts Stripped . | . . . Power Chain Reactions 5 | . 5 . Alert | -11 -10 -10 ------- Run | Yrd Mat Sub Peak Influence 244 | . 244 . Initial . | . . . Average 76 | . 79 . Maximum Alert Level 1 | . 1 . Low Security (%) 88 | 100 88 . Level 1 11 | . 11 . Level 2 . | . . . Level 3 . | . . . Level 4 . | . . . Level 5 . | . . . High Security . | . . . Max Security . | . . . Squads Dispatched 2 | . 2 . Investigation . | . . . Extermination . | . . . Reinforcement 2 | . 2 . Assault . | . . . Garrison . | . . . Intercept . | . . . Searches Triggered . | . . . Construction Impeded . | . . . Haulers Reinforced . | . . . Active Scanning Responses . | . . . Cargo Convoy Interrupts . | . . . Stealth | -11 -10 -10 --------- Run | Yrd Mat Sub Distress Signals 2 | . 2 . Communications Jammed . | . . . Distress Signals . | . . . Times Spotted 33 | . 23 10 Peak Tracking Total 6 | . 6 2 Tactical Retreats 1 | . 1 . Traps | -11 -10 -10 ------- Run | Yrd Mat Sub Traps Triggered 3 | . 3 . Indirectly . | . . . Trap Hack Attempts . | . . . Triggered . | . . . Disarmed . | . . . Reprogrammed . | . . . Reused . | . . . Traps Extracted . | . . . Installed . | . . . Triggered . | . . . Machines | -11 -10 -10 ---------- Run | Yrd Mat Sub Machines Disabled 5 | . 1 4 Max in Single Turn 2 | . 1 2 Machines Repaired . | . . . Machines Dismantled . | . . . Machines Sabotaged . | . . . Overloaded Fab Kills . | . . . Hacking | -11 -10 -10 --------- Run | Yrd Mat Sub Machines Accessed 6 | . 5 1 Terminals 4 | . 4 . Fabricators . | . . . Repair Stations . | . . . Recycling Units 1 | . 1 . Scanalyzers . | . . . Garrison Access . | . . . Total Hacks 29 | . 20 9 Successful 23 | . 14 9 Failed 6 | . 6 . Catastrophic . | . . . Database Lockouts . | . . . Manual 17 | . 17 . Terminals 15 | . 15 . Fabricators . | . . . Repair Stations . | . . . Recycling Units 5 | . 5 . Scanalyzers . | . . . Garrison Access . | . . . Terminal Hacks 14 | . 5 9 Record 8 | . . 8 Robot Schematic 2 | . 2 . Terminal Index 1 | . 1 . Investigation Status 1 | . 1 . Hauler Manifests 1 | . 1 . Derelict Proto ID Bank 1 | . . 1 Fabricator Hacks . | . . . Repair Station Hacks . | . . . Recycling Unit Hacks 1 | . 1 . Report Inventory 1 | . 1 . Scanalyzer . | . . . Garrison Access Hacks . | . . . Unauthorized Hacks 8 | . 8 . Terminals 4 | . 4 . Botnet 3 | . 3 . Operators 1 | . 1 . Fabricators . | . . . Repair Stations . | . . . Recycling Units 4 | . 4 . Monitor 1 | . 1 . Reject 1 | . 1 . Recyclers 1 | . 1 . Mask 1 | . 1 . Scanalyzers . | . . . Garrison Access . | . . . Data Cores Recovered . | . . . Used . | . . . Hacking Detections 4 | . 4 . Full Trace Events . | . . . Feedback Events . | . . . Feedback Blocked . | . . . Robot Schematics Acquired 2 | . 2 . Robots Built . | . . . Authchips . | . . . Time . | . . . Total Robot Build Rating . | . . . Part Schematics Acquired . | . . . Parts Built . | . . . Authchips . | . . . Time . | . . . Total Part Build Rating . | . . . Parts Repaired . | . . . Time . | . . . Parts Recycled . | . . . Recycled Matter . | . . . Retrieved Matter . | . . . Retrieved Components . | . . . Parts Scanalyzed . | . . . Part Schematics Acquired . | . . . Parts Damaged . | . . . Bothacking | -11 -10 -10 ------------ Run | Yrd Mat Sub Used RIF Installer . | . . . Robots Hacked . | . . . Non-combat . | . . . Combat . | . . . Robot Hacks Applied . | . . . Relay Couplers Released . | . . . Fabnet Peak Effective % . | . . . Robots Rewired . | . . . Allies Hacked . | . . . Hacks Repelled . | . . . Allies | -11 -10 -10 -------- Run | Yrd Mat Sub Total Allies . | . . . Largest Group . | . . . Highest-Rated Group . | . . . Highest-Rated Ally . | . . . Total Orders . | . . . Ally Attacks . | . . . Total Damage . | . . . Kills . | . . . Allies Corrupted . | . . . Allies Melted . | . . . Intel | -11 -10 -10 ------- Run | Yrd Mat Sub Robot Analysis Total . | . . . Derelict Logs Recovered . | . . . Drone Launches . | . . . Drone Recoveries . | . . . Exploration | -11 -10 -10 ------------- Run | Yrd Mat Sub Turns Passed 7130 | 83 1661 5386 Spaces Moved 1858 | 43 806 1009 Core 90 | 2 . 88 Treads 1397 | 41 806 550 Legs . | . . . Wheels 371 | . . 371 Hover . | . . . Flight . | . . . Fastest Speed 50 | 50 160 110 Average Speed 358 | 154 176 512 Slowest Speed 3550 | 160 240 3550 Overloaded Moves . | . . . Propulsion Burnouts . | . . . Robots Hopped . | . . . Cave-ins Triggered . | . . . Exploration Rate (%) 49 | 4 100 45 Regions Visited 2 Branch Regions 1 Pre-discovered Areas . | . . . Known Exits Taken . | . . . Unknown Exits Taken 2 | 1 1 . Scrap Searched . | . . . Spaces Dug . | . . . Terrain Destroyed 41 | . 14 27 Melee . | . . . Projectile . | . . . AOE 41 | . 14 27 Terrain Rammed . | . . . Walls Destroyed . | . . . Machines Disabled . | . . . Actions | -11 -10 -10 --------- Run | Yrd Mat Sub Total 2187 | 58 956 1173 Wait 121 | . 69 52 Move 1856 | 42 805 1009 Hop . | . . . Pick Up 59 | 8 18 33 Fast Attach 6 | 4 1 1 Attach 13 | 2 2 9 Detach . | . . . Swap 14 | . 6 8 Drop 13 | 2 6 5 Fire 103 | . 47 56 Melee . | . . . Ram . | . . . Kick . | . . . Crush 2 | . 2 . Escape Stasis . | . . . Rewire . | . . . Trap . | . . . Miscellaneous . | . . . Route ------- -11/Scrapyard -10/Materials (discovered 6 exits: [*Mat x3] / [*Min x2] / *Sub) -10/Subcaves History --------- Turn | Location | Event 20 | -11/Scrapyard | Discovered new exit (range 16) 84 | -11/Scrapyard | Entered Materials 300 | -10/Materials | Build established: Mutant 373 | -10/Materials | Discovered new exit (range 10) 782 | -10/Materials | Discovered new exit (range 16) 952 | -10/Materials | Discovered new exit (range 15) 1018 | -10/Materials | Discovered new exit (range 9) 1214 | -10/Materials | Discovered new exit (range 16) 1733 | -10/Materials | Discovered new exit (range 6) 1745 | -10/Materials | Entered Subcaves 2522 | -10/Subcaves | Visited 4L-MR0's lab 2692 | -10/Subcaves | Found Power Bank 2849 | -10/Subcaves | System corruption reached 10% 2986 | -10/Subcaves | Lost 3 parts (1p1n1w) 3190 | -10/Subcaves | Ambushed by angry Subdweller bent on revenge 3194 | -10/Subcaves | Core integrity fell below 50% 3581 | -10/Subcaves | Core integrity fell below 20% 3606 | -10/Subcaves | Build established: Hauler-Mutant 3640 | -10/Subcaves | Lost 3 parts (2n1w) 7131 | -10/Subcaves | Destroyed by 8F-HII(R) with Subdweller Machine Gun Last Messages --------------- 06519_ System corrupted: Component data lost. 06534_ System corrupted: IFF burst signal emitted. 06574_ System corrupted: Energy discharge (-55). 06589_ System corrupted: Component data lost. 06638_ System corrupted: IFF burst signal emitted. 06655_ System corrupted: Component data lost. 06670_ System corrupted: Energy discharge (-90). 06765_ System corrupted: Component data lost. 06786_ L%HYQLBSAQ7 >6V/D7|V%3MPTTR 06802_ System corrupted: Energy discharge (-67). 06825_ System corrupted: Component data lost. 06869_ HT0CS9D2AQGIG8SNOZO&YXTFTQ:/9EJ1BAH/3S 06909_ UYI&DA>N,NWSIMVPSXH4SKNZ 06964_ YBU7V9O 1NIBMGYFWXSZ &K4RK 07029_ &VLXL4 ,GC8%XUPT0EU9 UESI6BSWVJKU 07057_ System corrupted: Component data lost. 07113_ Autogun destroyed. 07122_ System corrupted: Matter fused (-5). 07129_ Critical hit (Destroy). 07129_ Ion Engine destroyed. Map ----- +----------------------------------------------------+ | ???????????????????# #?# #??????????????? | | ???????????????##### #?## #??????????????? | | ????????????#### ## #??# #####??????????????? | | ???????????## #???## #??????????????????? | | ?????####??# #???## #??????????????????? | | ????## ###### ### ##### #??????????????????? | | ????# & ##?###?## ## #??????????????????? | | ????# #??????# ##?????????????????? | | ????# " ######## ## ##????????????????? | | ????## "" ### ##???????????????? | | ????# """"" ### ##??????????????? | | ????# ""####### ## ## #??????????????? | | ????# "#?????#### ### #??????????????? | | ????##" #??????# #### #??????????????? | | ?????#"" #??????## ## ### #??????????????? | | ???"""###???????# ### #??????????????? | | #?#""##????# ???###?## #??????????????? | | ## "#????? ?? ????# #??????????????? | | " ????## ?? ????#### ## #??????????????? | | "" ???## #?# ????## ### #??????????????? | | ""? ??### ## ???## #?####??????????????? | | "" ????? ???## #???????????????????? | | " "?????? ????# #???????????????????? | | ""???????? #????# #???????????????????? | | #????????? ####?# #???????????????????? | | ??###?????? ??##@ #???#####???????????? | | ?## ##?????# #???##R ##??## ##?##???????? | | ## #####?# ????## ##### ## #???????? | | ## ### ## #???## #???????? | | ## ## #?### #???????? | | # #### [### = ##???????? | | # # #### ##???????? | | ##### #### #### ####????? | | ##### ##??## ##?# #????? | | # ### #????#### ## #??## #????? | | # #?###???????###### ##??### ##????? | | #????????????????# #??### ####### #?????? | | ##????????????????# ##??# ########### ##?????? | | ##???????????????## ##?### #??###??????? | | #??????????????## #### #####???????? | | #??????????????# """ ##??????? | | ##??????????????# """ ## #??????? | | ##???????????????## ### #??????? | | #?????????????????# #?# ##??????? | | ##?????????????????# #?# #???????? | | #?????????????????# """""" "#### ##???????? | | ??????????????????######""""""" #######????????? | | ???????????????????????#""""" #?????????????? | | ???????????????????????## """" #?????????????? | | ????????????????????????# """" ##????????????? | +----------------------------------------------------+ Best States ------------- Heat Dissipation 25 Energy Generation 10 Energy Capacity 250 Matter Stores 300 Matter Capacity 300 Sight Range 16 Terrain Scan Density 10 Armor Coverage 150 Evasion (%) 40 Recoil Reduction 2 Item Schematics ----------------- None Robot Schematics ------------------ O-16 Technician | -10/Materials | Hacked M-13 Machinist | -10/Materials | Hacked Fabricated ------------ Nothing Alien Tech Used ----------------- None Achievements -------------- None Challenges ------------ None Game ------ Seed MappingDerelictPlating Manual? 0 Play Time 00:28:38 Cumulative 454.4 hours Start 2025.04.27 @ 21:05:56 End 2025.04.27 @ 21:33:47 Sessions 1 Manual Loads 0 Difficulty Rogue Special Mode None Game No. 288 Rogue 285 Adventurer 3 Explorer 0 Win Type - Total 8 Types 7/0/1/0/0/0/0/0/0 Lore% 60 Gallery% 74 Achievement% 67 Wizard Run 0 Options --------- Layout 0 ASCII 0 Keyboard 0 Movement Numpad Keybinds 0 Fullscreen 1 Font 18/SmallcapsGlow Map View 76x50 Zoom Use 0% Tactical HUD 1 Map Filters NONE Filters NONE Steam 1 RUN: 89fc0d8a-a824-4376-a08d-6fd22f54af39